[Event "Live Chess"]
[Site "Chess.com"]
[Date "2023.05.21"]
[Round "-"]
[White "Mugzwang"]
[Black "smoggyrabbit"]
[Result "1-0"]
[WhiteElo "1559"]
[BlackElo "1650"]
[TimeControl "300"]
[EndTime "5:56:23 PDT"]
[Termination "Mugzwang won on time"]

1. Nf3 {[%clk 0:04:56.2]} 1... e6 {[%clk 0:04:56.2]} 2. g3 {[%clk 0:04:51.8]}
2... f5 {[%clk 0:04:53.5]} 3. Bg2 {[%clk 0:04:49.7]} 3... Nf6 {[%clk 0:04:52.6]}
4. b3 {[%clk 0:04:46.3]} 4... Be7 {[%clk 0:04:42.6]} 5. Bb2 {[%clk 0:04:44.8]}
5... O-O {[%clk 0:04:41.4]} 6. c4 {[%clk 0:04:42.4]} 6... d6 {[%clk 0:04:38.4]}
7. Nc3 {[%clk 0:04:40.9]} 7... Ne4 {[%clk 0:04:34.5]} 8. Qc2 {[%clk 0:04:34.8]}
8... Nxc3 {[%clk 0:04:20.3]} 9. Qxc3 {[%clk 0:04:33.4]} 9... e5 {[%clk
0:04:16.9]} 10. d4 {[%clk 0:04:21.6]} 10... exd4 {[%clk 0:03:17.2]} 11. Nxd4
{[%clk 0:04:11.7]} 11... Bf6 {[%clk 0:03:06.9]} 12. Bd5+ {[%clk 0:03:53.6]}
12... Kh8 {[%clk 0:03:03.7]} 13. Qd2 {[%clk 0:03:28.4]} 13... c6 {[%clk
0:01:30.7]} 14. Be6 {[%clk 0:03:21.7]} 14... Bxd4 {[%clk 0:01:00.3]} 15. Qxd4
{[%clk 0:03:12.2]} 15... Qe7 {[%clk 0:00:52.4]} 16. Bxc8 {[%clk 0:02:58]} 16...
Rxc8 {[%clk 0:00:51.3]} 17. O-O {[%clk 0:02:51.1]} 17... Nd7 {[%clk 0:00:43.1]}
18. Rad1 {[%clk 0:02:43.6]} 18... Nf6 {[%clk 0:00:36]} 19. Qxd6 {[%clk
0:02:30.8]} 19... Qxd6 {[%clk 0:00:28.6]} 20. Rxd6 {[%clk 0:02:23.8]} 20... Rd8
{[%clk 0:00:19.4]} 21. Rfd1 {[%clk 0:02:17.7]} 21... Rxd6 {[%clk 0:00:18.5]} 22.
Rxd6 {[%clk 0:02:15.7]} 22... Ne4 {[%clk 0:00:17.1]} 23. Rd7 {[%clk 0:02:12.1]}
23... Rg8 {[%clk 0:00:14.2]} 24. Rxb7 {[%clk 0:02:07]} 24... h6 {[%clk
0:00:12.3]} 25. Rxa7 {[%clk 0:02:05.6]} 25... Kh7 {[%clk 0:00:11.1]} 26. Rc7
{[%clk 0:02:02.1]} 26... Nf6 {[%clk 0:00:05]} 27. a4 {[%clk 0:01:59.7]} 27...
Ne8 {[%clk 0:00:02.1]} 28. Rxc6 {[%clk 0:01:58]} 1-0

[Event "Live Chess"]
[Site "Chess.com"]
[Date "2023.05.21"]
[Round "-"]
[White "CheckThis4"]
[Black "WelshTiger"]
[Result "1-0"]
[WhiteElo "2519"]
[BlackElo "2302"]
[TimeControl "300"]
[EndTime "5:56:25 PDT"]
[Termination "CheckThis4 won by resignation"]

1. d4 {[%clk 0:04:55.6]} 1... Nf6 {[%clk 0:04:50.4]} 2. Bg5 {[%clk 0:04:53.7]}
2... d5 {[%clk 0:04:46.6]} 3. Nd2 {[%clk 0:04:51]} 3... Bf5 {[%clk 0:04:42.7]}
4. Ngf3 {[%clk 0:04:41]} 4... e6 {[%clk 0:04:40.8]} 5. e3 {[%clk 0:04:39.8]}
5... Be7 {[%clk 0:04:39.1]} 6. Nh4 {[%clk 0:04:31.2]} 6... Bg6 {[%clk 0:04:38]}
7. Nxg6 {[%clk 0:04:29.9]} 7... hxg6 {[%clk 0:04:36.4]} 8. Bd3 {[%clk
0:04:25.1]} 8... Nbd7 {[%clk 0:04:31.8]} 9. c4 {[%clk 0:04:22.9]} 9... c5 {[%clk
0:04:19.9]} 10. cxd5 {[%clk 0:04:17.9]} 10... Nxd5 {[%clk 0:04:19]} 11. Bxe7
{[%clk 0:04:14.3]} 11... Qxe7 {[%clk 0:04:18.2]} 12. dxc5 {[%clk 0:03:58.2]}
12... Nxc5 {[%clk 0:04:02.2]} 13. Bb5+ {[%clk 0:03:57.1]} 13... Kf8 {[%clk
0:04:01.7]} 14. Rc1 {[%clk 0:03:56.1]} 14... a6 {[%clk 0:03:56.8]} 15. Bc4
{[%clk 0:03:54.2]} 15... Nb6 {[%clk 0:03:51.7]} 16. Be2 {[%clk 0:03:49.6]} 16...
Rd8 {[%clk 0:03:50.7]} 17. Qc2 {[%clk 0:03:45.8]} 17... Qd6 {[%clk 0:03:32.4]}
18. Qxc5 {[%clk 0:03:38.7]} 1-0

[Event "Live Chess"]
[Site "Chess.com"]
[Date "2023.05.21"]
[Round "-"]
[White "ameetghasi100"]
[Black "Berdgross"]
[Result "1-0"]
[WhiteElo "2606"]
[BlackElo "697"]
[TimeControl "300"]
[EndTime "5:56:33 PDT"]
[Termination "ameetghasi100 won on time"]

1. c4 {[%clk 0:04:59.2]} 1... e5 {[%clk 0:04:57.4]} 2. d4 {[%clk 0:04:59.1]}
2... exd4 {[%clk 0:04:55.9]} 3. Qxd4 {[%clk 0:04:59]} 3... Nf6 {[%clk
0:04:53.6]} 4. Qe3+ {[%clk 0:04:58.4]} 4... Be7 {[%clk 0:04:43.5]} 5. Nc3 {[%clk
0:04:57.9]} 5... O-O {[%clk 0:04:41.9]} 6. h3 {[%clk 0:04:55.7]} 6... b6 {[%clk
0:04:36.2]} 7. g4 {[%clk 0:04:46.5]} 7... Bc5 {[%clk 0:04:33.8]} 8. Qf3 {[%clk
0:04:44]} 8... Nc6 {[%clk 0:04:26.4]} 9. e3 {[%clk 0:04:40.9]} 9... Bb7 {[%clk
0:04:24.6]} 10. Qd1 {[%clk 0:04:39.2]} 10... Nb4 {[%clk 0:04:19.3]} 11. f3
{[%clk 0:04:34.9]} 11... Re8 {[%clk 0:04:10.9]} 12. e4 {[%clk 0:04:32.6]} 12...
Nc6 {[%clk 0:03:58.4]} 13. Nge2 {[%clk 0:04:29.4]} 13... h6 {[%clk 0:03:41.1]}
14. Bg2 {[%clk 0:04:26.7]} 14... d6 {[%clk 0:03:36.4]} 15. Bf4 {[%clk 0:04:24]}
15... g5 {[%clk 0:03:27]} 16. Bg3 {[%clk 0:04:22]} 16... a6 {[%clk 0:03:12.7]}
17. b3 {[%clk 0:04:18]} 17... b5 {[%clk 0:03:11.9]} 18. cxb5 {[%clk 0:04:15.2]}
18... axb5 {[%clk 0:03:09.9]} 19. Qd2 {[%clk 0:04:12.3]} 19... b4 {[%clk
0:03:09]} 20. Nd1 {[%clk 0:04:09.8]} 20... Ba6 {[%clk 0:02:59.9]} 21. Nf2 {[%clk
0:04:07.2]} 21... Bxf2+ {[%clk 0:02:56.2]} 22. Bxf2 {[%clk 0:04:04.5]} 22...
Bxe2 {[%clk 0:02:46.8]} 23. Qxe2 {[%clk 0:04:02]} 23... Ne5 {[%clk 0:02:37.2]}
24. O-O {[%clk 0:04:00.1]} 24... c5 {[%clk 0:02:32.5]} 25. Rad1 {[%clk
0:03:58.6]} 25... Re6 {[%clk 0:02:26.8]} 26. Bg3 {[%clk 0:03:55.9]} 26... Qa5
{[%clk 0:02:19.1]} 27. Rd2 {[%clk 0:03:54.2]} 27... h5 {[%clk 0:01:51.7]} 28.
Rfd1 {[%clk 0:03:50.8]} 28... Rd8 {[%clk 0:01:42.5]} 29. Qe3 {[%clk 0:03:48.5]}
29... h4 {[%clk 0:01:29.3]} 30. Qxg5+ {[%clk 0:03:45.9]} 30... Kf8 {[%clk
0:01:22.4]} 31. Bxh4 {[%clk 0:03:45.1]} 31... Nxf3+ {[%clk 0:01:17.5]} 32. Bxf3
{[%clk 0:03:45]} 32... Qb6 {[%clk 0:00:47.4]} 33. e5 {[%clk 0:03:43.2]} 33...
c4+ {[%clk 0:00:44.9]} 34. Bf2 {[%clk 0:03:40.4]} 34... Qc7 {[%clk 0:00:36.8]}
35. exf6 {[%clk 0:03:38.6]} 35... cxb3 {[%clk 0:00:27.2]} 36. Qg7+ {[%clk
0:03:35.7]} 36... Ke8 {[%clk 0:00:21.2]} 37. Qg8+ {[%clk 0:03:35.6]} 37... Kd7
{[%clk 0:00:19.5]} 38. Qxf7+ {[%clk 0:03:35.5]} 38... Kc8 {[%clk 0:00:15.4]} 39.
Qxe6+ {[%clk 0:03:33]} 39... Rd7 {[%clk 0:00:01.6]} 40. Qxb3 {[%clk 0:03:32.9]}
1-0

[Event "Live Chess"]
[Site "Chess.com"]
[Date "2023.05.21"]
[Round "-"]
[White "matt1979"]
[Black "viktorskliarov"]
[Result "0-1"]
[WhiteElo "1540"]
[BlackElo "2649"]
[TimeControl "300"]
[EndTime "5:56:45 PDT"]
[Termination "viktorskliarov won by resignation"]

1. f4 {[%clk 0:04:33]} 1... g6 {[%clk 0:04:52.8]} 2. Nf3 {[%clk 0:04:31.6]} 2...
Bg7 {[%clk 0:04:52.2]} 3. e3 {[%clk 0:04:29.5]} 3... c5 {[%clk 0:04:50.5]} 4.
Bc4 {[%clk 0:04:26.1]} 4... d5 {[%clk 0:04:45.6]} 5. Be2 {[%clk 0:04:24]} 5...
Nc6 {[%clk 0:04:42.5]} 6. O-O {[%clk 0:04:22.7]} 6... Nh6 {[%clk 0:04:38.6]} 7.
Nc3 {[%clk 0:04:17.9]} 7... O-O {[%clk 0:04:36.9]} 8. d3 {[%clk 0:04:15.3]} 8...
d4 {[%clk 0:04:16.1]} 9. Ne4 {[%clk 0:04:12.7]} 9... b6 {[%clk 0:04:13]} 10. Qe1
{[%clk 0:04:05.1]} 10... Nf5 {[%clk 0:04:09]} 11. Bd1 {[%clk 0:04:02.4]} 11...
Nxe3 {[%clk 0:03:53.9]} 12. Bxe3 {[%clk 0:04:00.6]} 12... dxe3 {[%clk
0:03:53.4]} 13. c3 {[%clk 0:03:56.2]} 13... Qxd3 {[%clk 0:03:51.4]} 0-1

[Event "Live Chess"]
[Site "Chess.com"]
[Date "2023.05.21"]
[Round "-"]
[White "LiamClery2020"]
[Black "EdenHazard8"]
[Result "0-1"]
[WhiteElo "1973"]
[BlackElo "1949"]
[TimeControl "300"]
[EndTime "5:56:51 PDT"]
[Termination "EdenHazard8 won by checkmate"]

1. e4 {[%clk 0:04:59]} 1... c6 {[%clk 0:04:59]} 2. d4 {[%clk 0:04:56]} 2... d5
{[%clk 0:04:58.9]} 3. Nc3 {[%clk 0:04:55.8]} 3... dxe4 {[%clk 0:04:57.7]} 4.
Nxe4 {[%clk 0:04:55.7]} 4... Nf6 {[%clk 0:04:57.6]} 5. Nxf6+ {[%clk 0:04:55]}
5... exf6 {[%clk 0:04:57.5]} 6. Nf3 {[%clk 0:04:54.6]} 6... Bd6 {[%clk
0:04:57.4]} 7. Bd3 {[%clk 0:04:54.1]} 7... O-O {[%clk 0:04:57.3]} 8. O-O {[%clk
0:04:53]} 8... Re8 {[%clk 0:04:57.2]} 9. Re1 {[%clk 0:04:52.1]} 9... Nd7 {[%clk
0:04:55.9]} 10. Rxe8+ {[%clk 0:04:50.8]} 10... Qxe8 {[%clk 0:04:55.8]} 11. c3
{[%clk 0:04:48.8]} 11... Nf8 {[%clk 0:04:55.1]} 12. Qc2 {[%clk 0:04:48.2]} 12...
Be6 {[%clk 0:04:54]} 13. Bd2 {[%clk 0:04:47.5]} 13... Qd7 {[%clk 0:04:52.7]} 14.
Re1 {[%clk 0:04:44.5]} 14... Bc7 {[%clk 0:04:50.1]} 15. Nh4 {[%clk 0:04:41.1]}
15... Qd6 {[%clk 0:04:48.3]} 16. Nf3 {[%clk 0:04:40.4]} 16... Bg4 {[%clk
0:04:43.1]} 17. h3 {[%clk 0:04:31.9]} 17... Bxf3 {[%clk 0:04:38]} 18. gxf3
{[%clk 0:04:31.8]} 18... Qh2+ {[%clk 0:04:37.4]} 19. Kf1 {[%clk 0:04:31.7]}
19... Qxh3+ {[%clk 0:04:36]} 20. Ke2 {[%clk 0:04:31.6]} 20... Re8+ {[%clk
0:04:35.1]} 21. Kd1 {[%clk 0:04:31]} 21... Qxf3+ {[%clk 0:04:33.9]} 22. Be2
{[%clk 0:04:29.9]} 22... Qxf2 {[%clk 0:04:32.5]} 23. Qd3 {[%clk 0:04:27]} 23...
Qg3 {[%clk 0:04:24.5]} 24. Qf5 {[%clk 0:04:18.8]} 24... Qg6 {[%clk 0:04:18.9]}
25. Qf2 {[%clk 0:04:12.3]} 25... Qb1+ {[%clk 0:04:17.4]} 26. Bc1 {[%clk
0:04:11.3]} 26... Qxa2 {[%clk 0:04:16.2]} 27. Rh1 {[%clk 0:04:10.7]} 27... Qb3+
{[%clk 0:04:13.6]} 28. Kd2 {[%clk 0:04:09.8]} 28... Qe6 {[%clk 0:04:04.9]} 29.
Bd3 {[%clk 0:03:59]} 29... Qg4 {[%clk 0:03:55.1]} 30. Kc2 {[%clk 0:03:48.8]}
30... Qg3 {[%clk 0:03:49.5]} 31. Qd2 {[%clk 0:03:23.1]} 31... Bf4 {[%clk
0:03:39.4]} 32. Qxf4 {[%clk 0:03:19.3]} 32... Qg2+ {[%clk 0:03:38.3]} 33. Bd2
{[%clk 0:03:15.9]} 33... Qxh1 {[%clk 0:03:38.2]} 34. Qf5 {[%clk 0:03:14.7]}
34... Qd5 {[%clk 0:03:32.3]} 35. Qg4 {[%clk 0:03:12]} 35... Ng6 {[%clk
0:03:29.8]} 36. c4 {[%clk 0:03:08]} 36... Qe6 {[%clk 0:03:27.7]} 37. Qg2 {[%clk
0:03:03]} 37... f5 {[%clk 0:03:24.4]} 38. d5 {[%clk 0:03:00.9]} 38... cxd5
{[%clk 0:03:21.8]} 39. cxd5 {[%clk 0:03:00.8]} 39... Qd7 {[%clk 0:03:21.4]} 40.
Bc3 {[%clk 0:02:58.1]} 40... f4 {[%clk 0:03:16.4]} 41. Qf2 {[%clk 0:02:54.9]}
41... Qg4 {[%clk 0:03:12.2]} 42. Qxa7 {[%clk 0:02:53.3]} 42... f3 {[%clk
0:03:10]} 43. Qxb7 {[%clk 0:02:51.8]} 43... f2 {[%clk 0:03:02.6]} 44. Qd7 {[%clk
0:02:45.3]} 44... Re2+ {[%clk 0:02:58.8]} 45. Bxe2 {[%clk 0:02:43.1]} 45...
Qxe2+ {[%clk 0:02:55.5]} 46. Kb3 {[%clk 0:02:41.3]} 46... f1=Q {[%clk
0:02:53.7]} 47. Qd8+ {[%clk 0:02:38.6]} 47... Nf8 {[%clk 0:02:52]} 48. Bb4
{[%clk 0:02:37.2]} 48... Qc4+ {[%clk 0:02:49.8]} 49. Ka3 {[%clk 0:02:36.6]}
49... Qfd3+ {[%clk 0:02:48]} 50. Ka4 {[%clk 0:02:34.8]} 50... Qdb3+ {[%clk
0:02:46.7]} 51. Ka5 {[%clk 0:02:33.7]} 51... Qcxb4+ {[%clk 0:02:46]} 52. Ka6
{[%clk 0:02:32.4]} 52... Qb5+ {[%clk 0:02:45.9]} 53. Ka7 {[%clk 0:02:31.5]}
53... Qb7# {[%clk 0:02:45.8]} 0-1

[Event "Live Chess"]
[Site "Chess.com"]
[Date "2023.05.21"]
[Round "-"]
[White "KeithArkell"]
[Black "quantum_void"]
[Result "1-0"]
[WhiteElo "2476"]
[BlackElo "1499"]
[TimeControl "300"]
[EndTime "5:56:53 PDT"]
[Termination "KeithArkell won by resignation"]

1. d4 {[%clk 0:04:57.4]} 1... e6 {[%clk 0:04:57]} 2. Nf3 {[%clk 0:04:56.5]} 2...
d5 {[%clk 0:04:55.7]} 3. c4 {[%clk 0:04:55.1]} 3... Nf6 {[%clk 0:04:54.2]} 4.
cxd5 {[%clk 0:04:54.3]} 4... Nxd5 {[%clk 0:04:52.8]} 5. Nc3 {[%clk 0:04:53.6]}
5... Bb4 {[%clk 0:04:47.3]} 6. Bd2 {[%clk 0:04:52.5]} 6... Bxc3 {[%clk
0:04:43.8]} 7. bxc3 {[%clk 0:04:51.2]} 7... O-O {[%clk 0:04:42]} 8. e4 {[%clk
0:04:50.2]} 8... Nf6 {[%clk 0:04:37.1]} 9. Bd3 {[%clk 0:04:49.1]} 9... c5 {[%clk
0:04:32.5]} 10. e5 {[%clk 0:04:48.1]} 10... Nd5 {[%clk 0:04:27.1]} 11. Bxh7+
{[%clk 0:04:46.9]} 11... Kh8 {[%clk 0:04:24.6]} 12. Ng5 {[%clk 0:04:45.5]} 12...
f6 {[%clk 0:04:16.4]} 13. Qh5 {[%clk 0:04:43.1]} 13... fxg5 {[%clk 0:04:13.6]}
14. Bg6+ {[%clk 0:04:41.3]} 1-0

[Event "Live Chess"]
[Site "Chess.com"]
[Date "2023.05.21"]
[Round "-"]
[White "Nazar_777"]
[Black "LL220284LL"]
[Result "0-1"]
[WhiteElo "1563"]
[BlackElo "2281"]
[TimeControl "300"]
[EndTime "5:56:56 PDT"]
[Termination "LL220284LL won by checkmate"]

1. e3 {[%clk 0:04:51.8]} 1... e6 {[%clk 0:04:59.9]} 2. h4 {[%clk 0:04:51.2]}
2... d5 {[%clk 0:04:59.8]} 3. a3 {[%clk 0:04:50.7]} 3... Be7 {[%clk 0:04:58.8]}
4. c4 {[%clk 0:04:50.1]} 4... Bxh4 {[%clk 0:04:57.8]} 5. cxd5 {[%clk 0:04:48.4]}
5... Be7 {[%clk 0:04:55.9]} 6. dxe6 {[%clk 0:04:47.5]} 6... Bxe6 {[%clk
0:04:55.8]} 7. Nf3 {[%clk 0:04:46.5]} 7... Nf6 {[%clk 0:04:55.3]} 8. Nc3 {[%clk
0:04:45.7]} 8... c5 {[%clk 0:04:54.8]} 9. Qc2 {[%clk 0:04:44.9]} 9... Nc6 {[%clk
0:04:53.8]} 10. Be2 {[%clk 0:04:44.4]} 10... Rc8 {[%clk 0:04:52.8]} 11. b3
{[%clk 0:04:43.8]} 11... Nd4 {[%clk 0:04:50.5]} 12. Nxd4 {[%clk 0:04:42.2]}
12... cxd4 {[%clk 0:04:50.4]} 13. Bb2 {[%clk 0:04:39.4]} 13... dxc3 {[%clk
0:04:49.3]} 14. Bxc3 {[%clk 0:04:37.9]} 14... Nd5 {[%clk 0:04:48.2]} 15. Rc1
{[%clk 0:04:36.7]} 15... Nxc3 {[%clk 0:04:45]} 16. dxc3 {[%clk 0:04:35.5]} 16...
Bf6 {[%clk 0:04:44.6]} 17. c4 {[%clk 0:04:32.9]} 17... Qa5+ {[%clk 0:04:43.9]}
18. b4 {[%clk 0:04:30.6]} 18... Qxa3 {[%clk 0:04:41.9]} 19. c5 {[%clk
0:04:29.5]} 19... Qxb4+ {[%clk 0:04:40.7]} 20. Kf1 {[%clk 0:04:28.3]} 20... h6
{[%clk 0:04:39.1]} 21. Bf3 {[%clk 0:04:26.1]} 21... O-O {[%clk 0:04:36.3]} 22.
g4 {[%clk 0:04:23.7]} 22... Bxg4 {[%clk 0:04:32.8]} 23. Bxg4 {[%clk 0:04:22.2]}
23... Qxg4 {[%clk 0:04:32.7]} 24. Rg1 {[%clk 0:04:21.2]} 24... Qh3+ {[%clk
0:04:31.3]} 25. Ke2 {[%clk 0:04:18]} 25... Rfd8 {[%clk 0:04:30.4]} 26. Rg3
{[%clk 0:04:15.6]} 26... Qh5+ {[%clk 0:04:29.3]} 27. f3 {[%clk 0:04:12.3]} 27...
Qh2+ {[%clk 0:04:27.7]} 28. Kf1 {[%clk 0:04:07.4]} 28... Qxg3 {[%clk 0:04:26.9]}
29. f4 {[%clk 0:04:04.5]} 29... Qxe3 {[%clk 0:04:25.5]} 30. Qg2 {[%clk
0:04:00.9]} 30... Qxc1+ {[%clk 0:04:23.6]} 31. Kf2 {[%clk 0:03:59.6]} 31... Rd2+
{[%clk 0:04:23.5]} 32. Kf3 {[%clk 0:03:58.6]} 32... Rxg2 {[%clk 0:04:23.4]} 33.
Kxg2 {[%clk 0:03:57.7]} 33... Rd8 {[%clk 0:04:23.3]} 34. Kf3 {[%clk 0:03:57]}
34... Rd2 {[%clk 0:04:23.2]} 35. Kg4 {[%clk 0:03:56.5]} 35... Qg1+ {[%clk
0:04:22.4]} 36. Kf5 {[%clk 0:03:55.7]} 36... Qg6# {[%clk 0:04:22.1]} 0-1

[Event "Live Chess"]
[Site "Chess.com"]
[Date "2023.05.21"]
[Round "-"]
[White "HoarseyHorsey"]
[Black "wot-not"]
[Result "1/2-1/2"]
[WhiteElo "1466"]
[BlackElo "1529"]
[TimeControl "300"]
[EndTime "5:57:02 PDT"]
[Termination "Game drawn - insufficient material"]

1. d4 {[%clk 0:04:59.1]} 1... Nf6 {[%clk 0:04:44.1]} 2. c4 {[%clk 0:04:57.8]}
2... g6 {[%clk 0:04:37.5]} 3. f3 {[%clk 0:04:57]} 3... d5 {[%clk 0:04:36]} 4.
cxd5 {[%clk 0:04:55.7]} 4... Qxd5 {[%clk 0:04:29.6]} 5. Nc3 {[%clk 0:04:53]}
5... Qa5 {[%clk 0:04:27.4]} 6. Bd2 {[%clk 0:04:51.7]} 6... Qb6 {[%clk 0:04:25]}
7. Qc2 {[%clk 0:04:48.4]} 7... Bg7 {[%clk 0:04:19.5]} 8. e4 {[%clk 0:04:47.1]}
8... O-O {[%clk 0:04:13.6]} 9. Nge2 {[%clk 0:04:45.7]} 9... c5 {[%clk
0:04:06.5]} 10. e5 {[%clk 0:04:44.6]} 10... Ne8 {[%clk 0:03:57.8]} 11. Be3
{[%clk 0:04:32.4]} 11... Bf5 {[%clk 0:03:48.6]} 12. Qd2 {[%clk 0:04:24]} 12...
cxd4 {[%clk 0:03:32.9]} 13. Bxd4 {[%clk 0:04:20.9]} 13... Qd8 {[%clk 0:03:22.4]}
14. Ng3 {[%clk 0:03:58]} 14... Nc6 {[%clk 0:03:10.3]} 15. O-O-O {[%clk
0:03:53.2]} 15... Nxd4 {[%clk 0:03:07.9]} 16. Qxd4 {[%clk 0:03:51.6]} 16... Qxd4
{[%clk 0:03:06.9]} 17. Rxd4 {[%clk 0:03:50.7]} 17... Nc7 {[%clk 0:02:57]} 18.
Nxf5 {[%clk 0:03:47]} 18... gxf5 {[%clk 0:02:55.5]} 19. Rd7 {[%clk 0:03:41.6]}
19... Bxe5 {[%clk 0:02:28.8]} 20. Rxe7 {[%clk 0:03:36.1]} 20... Bxc3 {[%clk
0:02:25.9]} 21. bxc3 {[%clk 0:03:34.7]} 21... Nd5 {[%clk 0:02:22.9]} 22. Rd7
{[%clk 0:03:29.9]} 22... Nxc3 {[%clk 0:02:21.2]} 23. Bc4 {[%clk 0:03:27.2]}
23... Rac8 {[%clk 0:02:17.6]} 24. Bb3 {[%clk 0:03:08.5]} 24... Nxa2+ {[%clk
0:01:46.7]} 25. Kb2 {[%clk 0:03:06.8]} 25... Nb4 {[%clk 0:01:45.7]} 26. Re1
{[%clk 0:02:55.4]} 26... a5 {[%clk 0:01:23.1]} 27. Ree7 {[%clk 0:02:48.6]} 27...
b5 {[%clk 0:01:21.5]} 28. Rxf7 {[%clk 0:02:42.5]} 28... Rxf7 {[%clk 0:01:15.2]}
29. Bxf7+ {[%clk 0:02:34.6]} 29... Kf8 {[%clk 0:01:11.6]} 30. Be6 {[%clk
0:02:27.2]} 30... Rc2+ {[%clk 0:01:07.4]} 31. Kb1 {[%clk 0:02:22.5]} 31... f4
{[%clk 0:00:47.8]} 32. Rb7 {[%clk 0:02:04.9]} 32... Rxg2 {[%clk 0:00:37.2]} 33.
Rxb5 {[%clk 0:01:59.6]} 33... Rxh2 {[%clk 0:00:36]} 34. Rxa5 {[%clk 0:01:56.2]}
34... Rf2 {[%clk 0:00:32.6]} 35. Rb5 {[%clk 0:01:43.3]} 35... Nd3 {[%clk
0:00:29]} 36. Bd5 {[%clk 0:01:38.9]} 36... Ne1 {[%clk 0:00:25.3]} 37. Rb3 {[%clk
0:01:35.1]} 37... h5 {[%clk 0:00:24.2]} 38. Rb6 {[%clk 0:01:24.9]} 38... h4
{[%clk 0:00:21.9]} 39. Rh6 {[%clk 0:01:21.4]} 39... Nxf3 {[%clk 0:00:20.5]} 40.
Bxf3 {[%clk 0:01:19.6]} 40... Rxf3 {[%clk 0:00:19.9]} 41. Rxh4 {[%clk 0:01:19]}
41... Rg3 {[%clk 0:00:19.3]} 42. Rxf4+ {[%clk 0:01:17.1]} 42... Kg7 {[%clk
0:00:17.5]} 43. Kc2 {[%clk 0:01:15.3]} 43... Kg6 {[%clk 0:00:16.8]} 44. Rf2
{[%clk 0:01:13.1]} 44... Kg5 {[%clk 0:00:16.4]} 45. Re2 {[%clk 0:01:11.8]} 45...
Kg4 {[%clk 0:00:15.9]} 46. Kd2 {[%clk 0:01:11.4]} 46... Kf3 {[%clk 0:00:15.3]}
47. Re3+ {[%clk 0:01:07.2]} 47... Kf4 {[%clk 0:00:13.5]} 48. Re2 {[%clk
0:01:06.2]} 48... Kg4 {[%clk 0:00:12.7]} 49. Re4+ {[%clk 0:01:05]} 49... Kh3
{[%clk 0:00:11.9]} 50. Re2 {[%clk 0:01:03.8]} 50... Rg2 {[%clk 0:00:11.4]} 51.
Rxg2 {[%clk 0:00:59.6]} 51... Kxg2 {[%clk 0:00:10.8]} 1/2-1/2

[Event "Live Chess"]
[Site "Chess.com"]
[Date "2023.05.21"]
[Round "-"]
[White "LordBenin"]
[Black "MarkLim1"]
[Result "0-1"]
[WhiteElo "1367"]
[BlackElo "1707"]
[TimeControl "300"]
[EndTime "5:57:18 PDT"]
[Termination "MarkLim1 won by resignation"]

1. d4 {[%clk 0:04:59.2]} 1... c6 {[%clk 0:04:58.8]} 2. e4 {[%clk 0:04:57.5]}
2... d5 {[%clk 0:04:57.9]} 3. e5 {[%clk 0:04:56.7]} 3... c5 {[%clk 0:04:56.5]}
4. Nf3 {[%clk 0:04:51.6]} 4... Nc6 {[%clk 0:04:55.3]} 5. dxc5 {[%clk 0:04:50.1]}
5... Bg4 {[%clk 0:04:54.1]} 6. Bf4 {[%clk 0:04:44.2]} 6... e6 {[%clk 0:04:53.3]}
7. h3 {[%clk 0:04:40.5]} 7... Bxf3 {[%clk 0:04:50.5]} 8. Qxf3 {[%clk 0:04:39.2]}
8... Bxc5 {[%clk 0:04:49.9]} 9. Bb5 {[%clk 0:04:33]} 9... Qb6 {[%clk 0:04:48.3]}
10. Nc3 {[%clk 0:04:29.5]} 10... a6 {[%clk 0:04:46.8]} 11. Bd3 {[%clk
0:04:27.1]} 11... Qxb2 {[%clk 0:04:44.6]} 12. O-O {[%clk 0:04:12.5]} 12... Qxc3
{[%clk 0:04:43.1]} 13. Rab1 {[%clk 0:04:04.5]} 13... Nge7 {[%clk 0:04:37]} 14.
Rxb7 {[%clk 0:03:56.9]} 14... Nxe5 {[%clk 0:04:08.9]} 15. Bb5+ {[%clk
0:03:42.7]} 15... axb5 {[%clk 0:04:07.9]} 16. Qxc3 {[%clk 0:03:41.6]} 16... Nc4
{[%clk 0:04:04.1]} 17. Rb8+ {[%clk 0:03:30.9]} 17... Rxb8 {[%clk 0:04:00.2]} 18.
Bxb8 {[%clk 0:03:30.8]} 18... O-O {[%clk 0:03:59.3]} 19. Bg3 {[%clk 0:03:27]}
19... Nf5 {[%clk 0:03:57.2]} 20. Rb1 {[%clk 0:03:19.1]} 20... Nxg3 {[%clk
0:03:53.5]} 21. Rxb5 {[%clk 0:03:08]} 21... Ne2+ {[%clk 0:03:50.3]} 22. Kh2
{[%clk 0:02:57.5]} 22... Nxc3 {[%clk 0:03:48.4]} 23. Rxc5 {[%clk 0:02:56.7]}
23... Nxa2 {[%clk 0:03:47.4]} 0-1